{"text_format":"1","workbook":"xlsx","n_sheets":4,"sheets":["Options"," ","HELP","Packing List"],"not_rendered":{"charts":0,"images":28,"macros":1,"external_links":0,"defined_names":40,"comments":0,"pivot_tables":0},"unopened":[],"bounds":{"document_bytes":16777216,"sheet_cells":100000,"rows_first":2000,"rows_last":500,"rows_between":2000,"halvings":0,"cell_chars":16384,"cell_head_chars":4096},"cells_cut":0,"cells_raw":0,"read":"whole","date_system":"1900"}

{"sheet":"Options","index":0,"n_rows":73,"n_cols":12,"rows_kept":73,"cut":false,"hidden":false,"merged":[[2,6,2,7],[0,0,0,18]]}
["Packing List Generator"]
[]
[null,"Choose Gender:",null,null,null,null,"Weather Forecast:"]
[]
[null,"Length of Trip:",5,null,null,null,null,{"$f":"$A42","v":"Tue"},{"$f":"$A47","v":"Wed"},{"$f":"$A52","v":"Thu"},{"$f":"$A57","v":"Fri"},{"$f":"$A62","v":"Sat"}]
[null,null,null,null,null,null,"Highs",{"$f":"$A43","v":79},{"$f":"$A48","v":84},{"$f":"$A53","v":86},{"$f":"$A58","v":88},{"$f":"$A63","v":84}]
[null,"Destination:","santa cruz, bolivia",null,null,null,"Lows",{"$f":"$A44","v":57},{"$f":"$A49","v":64},70,70,64]
[null,null,null,null,null,null,"Conditions",{"$f":"$A45","v":"Partly Cloudy"},{"$f":"$A50","v":"Partly Cloudy"},"Partly Cloudy","Chance of a Thunderstorm","Mostly Cloudy"]
[]
[null,"Method of travel:",null,null,null,null,"Average High",{"$f":"AVERAGE(weatherPictures)","v":84.2}]
[null,null,null,null,null,null,"Average Low",{"$f":"AVERAGE(highTemps)","v":65}]
[null,"Lodging:"]
[]
[null,"Day of departure:"]
[]
[null,"Activities:"]
[]
[]
[]
[]
[]
[]
[]
[]
[]
[]
[]
[]
[]
[]
[]
[]
[]
[]
[]
[]
[]
[]
[]
["Daily Dress Me Enter Your Current Location"]
["Switch to Men's • Change to C°"]
["Tue"]
[79]
[57]
["Partly Cloudy"]
["Partly Cloudy. High 25°C (77°F). Winds 18 kph SSE"]
["Wed"]
[84]
[64]
["Partly Cloudy"]
["Partly Cloudy. High 26°C (78°F). Winds 14 kph SE"]
["Thu"]
[86]
[70]
["Partly Cloudy"]
["Scattered Clouds. High 29°C (84°F). Winds 21 kph NNW"]
["Fri"]
[88]
[70]
["Chance of a Thunderstorm"]
["Scattered Clouds. High 30°C (86°F). Winds 21 kph NNW"]
["Sat"]
[84]
[64]
["Mostly Cloudy"]
["Chance of a Thunderstorm. High 31°C (87°F). Winds 14 kph NNW"]
["Blog Twitter About"]
["Images from Forever 21"]
["Copyright © 2014 Nina Vir"]
["Ever woken up and not known what to wear?"]
["Daily Dress Me tells you what to wear based on the weather. Our goal is to simplify your daily routine of getting ready and looking great."]
["We welcome feedback and are currently looking for brands to collaborate with. Don't hesitate to get in touch!: dailydressme@gmail.com"]
["A project by Nina Vir."]

{"sheet":" ","index":1,"n_rows":38,"n_cols":9,"rows_kept":38,"cut":false,"hidden":false,"merged":[[0,3,0,8]]}
["Type of Trip"]
["Camping"]
["Hotel",null,null,"Clothes","Quantity","Shoes","Equipment","Hygiene Products","Other"]
["Cabin"]
["Condo"]
["Cruise Ship"]
["Backpacking"]
[]
["Length of stay"]
[1]
[2]
[3]
[4]
[5]
[6]
[7]
[8]
[9]
[10]
[11]
[12]
[13]
[14]
[15]
[16]
[17]
[18]
[19]
[20]
[21]
[]
["Monday"]
["Tuesday"]
["Wednesday"]
["Thursday"]
["Friday"]
["Saturday"]
["Sunday"]

{"sheet":"HELP","index":2,"n_rows":0,"n_cols":0,"rows_kept":0,"cut":false,"hidden":false,"merged":[]}

{"sheet":"Packing List","index":3,"n_rows":20,"n_cols":6,"rows_kept":20,"cut":false,"hidden":false,"merged":[[0,0,0,5]]}
["Packing List for santa cruz, bolivia"]
[]
["Clothes","Quantity","Shoes","Equipment","Hygiene Products","Other"]
["Pants",5,"Tennis Shoes","Towel","Toothpaste","Sunscreen"]
["Shirts",5,"Sandals","Water","Toothbrush","Sunglasses"]
["Underwear",5,"Boots","Fishing Poles","Chapstick","Passport"]
["Socks",5,"Casual Shoes","Bait","Nail Clippers"]
["Undershirts",5,"Heels","Cooler","Deodorant"]
["Belts",2,"Flats","Tackle Box","Razor"]
["Sweatshirts",2,null,"Climbing Shoes","Brush"]
["Pajamas",2,null,"Rope","Makeup"]
["Swimsuit",3.5,null,"Harness","Hairspray"]
["Swim Cover-up",1,null,"Clip","Face lotion"]
["Dresses",2,null,"Chalk","Face wash"]
["Coat",1,null,"Bike","Hair Dryer"]
["Hat",1,null,"Biking shorts","Straightener/Curler"]
["Gloves",1,null,"Helmet","Perfume"]
[null,null,null,"Scarf","Bobby pins"]
[null,null,null,"Hiking Boots","Hair Ties"]
[null,null,null,null,"Tweezers"]